{"text_format":"3","workbook":"xlsx","n_sheets":2,"sheets":["CÁCH SỬ DỤNG SỔ LÀM VIỆC NÀY","SỔ ĐIỂM"],"not_rendered":{"defined_names":5},"read":"whole","date_system":"1900"}

{"sheet":"CÁCH SỬ DỤNG SỔ LÀM VIỆC NÀY","index":0,"n_rows":10,"n_cols":2,"rows_kept":10}
[null,"HƯỚNG DẪN"]
[null,"Sử dụng trang tính SỔ ĐIỂM để tính toán điểm, trong đó mỗi bài tập tương ứng với một số điểm. "]
[null,"Hướng dẫn: Đảm bảo lưu các bản sao lưu điểm của bạn."]
[null,"1. Điền tên trường học của bạn, thông tin lớp, tên học viên và ID học viên (tùy chọn).  "]
[null,"2. Điều chỉnh bảng Điểm & GPA để khớp với hệ thống chấm điểm điển hình mà bạn sử dụng."]
[null,"3. Điền bài tập hoặc tên bài kiểm tra bắt đầu từ ô G7, cùng với tỷ lệ phần trăm của mỗi bài tập (ví dụ: \"Cuối kỳ\" và \"50%\"). "]
[null,"4. Điền điểm số cho mỗi học viên đối với từng bài tập hoặc bài kiểm tra. Các cột \"Điểm số\", \"Điểm theo chữ cái\" và \"GPA\" được tính toán tự động nhưng bạn có thể thay thế chúng nếu muốn. Theo cách tính toán điểm thì điểm trung bình và điểm tổng kết sẽ chưa đầy đủ cho đến khi tất cả các điểm số được nhập vào."]
[null,"Sử dụng lệnh \"Vùng in\" trên menu Bố trí trang nếu bạn muốn thay đổi vùng in."]
[null,"Điểm số, Điểm theo chữ cái và GPA không có giá trị hợp lệ cho đến khi hoàn thiện 100% bài kiểm tra & bài tập. "]
[null,"Nhập từng bài tập hoặc bài kiểm tra và tỷ lệ phần trăm của chúng so với tổng điểm vào các ô G7 ĐẾN W8."]

{"sheet":"SỔ ĐIỂM","index":1,"n_rows":20,"n_cols":23,"rows_kept":20,"merged":[[5,1,5,5],[6,1,6,3],[6,4,6,5],[7,1,8,3],[7,4,7,5],[8,4,8,5],[15,1,15,5],[16,1,16,2],[17,1,17,2],[18,1,18,2],[19,1,19,2]]}
[null,"TÊN TRƯỜNG HỌC CỦA BẠN"]
[]
[{"$nulls":6},"Điểm số",{"v":0,"d":"0%"},{"v":0.6,"d":"60%"},{"v":0.63,"d":"63%"},{"v":0.67,"d":"67%"},{"v":0.7,"d":"70%"},{"v":0.73,"d":"73%"},{"v":0.77,"d":"77%"},{"v":0.8,"d":"80%"},{"v":0.83,"d":"83%"},{"v":0.87,"d":"87%"},{"v":0.9,"d":"90%"},{"v":0.93,"d":"93%"},{"v":0.97,"d":"97%"}]
[{"$nulls":6},"Điểm theo chữ cái","F","D-","D","D+","C-","C","C+","B-","B","B+","A-","A","A+"]
[{"$nulls":6},"GPA",0,0.67,1,1.33,1.67,2,2.33,2.67,3,3.33,3.67,4,4]
[null,"Tên giáo viên"]
[null,"Lớp/Dự án",null,null,"Tên bài tập hoặc bài kiểm tra"]
[null,"Năm/Học kỳ/Quý",null,null,"Tỷ lệ phần trăm (tổng phải là 100%)"]
[{"$nulls":4},{"$f":"\"Tổng tỷ lệ phần trăm: \"&SUM(G8:W8)*100&\"%\"","v":"Tổng tỷ lệ phần trăm: 0%"}]
[null,"Tên học viên","ID học viên","Điểm số","Điểm theo chữ cái","GPA","Cột_6","Cột_7","Cột_8","Cột_9","Cột_10","Cột_11","Cột_12","Cột_13","Cột_14","Cột_15","Cột_16","Cột_17","Cột_18","Cột_19","Cột_20","Cột_21","Cột_22"]
[{"$nulls":3},{"$f":"(IF(SUM(Điểm[[#This Row],[Cột_6]:[Cột_22]]),ROUND(SUMPRODUCT($G$8:$W$8,Điểm[[#This Row],[Cột_6]:[Cột_22]]),2),\"\"))","v":""},{"$f":"IF(Điểm[[#This Row],[Điểm số]]<>\"\",HLOOKUP(Điểm[[#This Row],[Điểm số]],Bảng_điểm,2),\"\")","v":""},{"$f":"IF(Điểm[[#This Row],[Điểm số]]<>\"\",HLOOKUP(Điểm[[#This Row],[Điểm số]],Bảng_điểm,3),\"\")","v":""}]
[{"$nulls":3},{"$f":"(IF(SUM(Điểm[[#This Row],[Cột_6]:[Cột_22]]),ROUND(SUMPRODUCT($G$8:$W$8,Điểm[[#This Row],[Cột_6]:[Cột_22]]),2),\"\"))","v":""},{"$f":"IF(Điểm[[#This Row],[Điểm số]]<>\"\",HLOOKUP(Điểm[[#This Row],[Điểm số]],Bảng_điểm,2),\"\")","v":""},{"$f":"IF(Điểm[[#This Row],[Điểm số]]<>\"\",HLOOKUP(Điểm[[#This Row],[Điểm số]],Bảng_điểm,3),\"\")","v":""}]
[{"$nulls":3},{"$f":"(IF(SUM(Điểm[[#This Row],[Cột_6]:[Cột_22]]),ROUND(SUMPRODUCT($G$8:$W$8,Điểm[[#This Row],[Cột_6]:[Cột_22]]),2),\"\"))","v":""},{"$f":"IF(Điểm[[#This Row],[Điểm số]]<>\"\",HLOOKUP(Điểm[[#This Row],[Điểm số]],Bảng_điểm,2),\"\")","v":""},{"$f":"IF(Điểm[[#This Row],[Điểm số]]<>\"\",HLOOKUP(Điểm[[#This Row],[Điểm số]],Bảng_điểm,3),\"\")","v":""}]
[{"$nulls":3},{"$f":"(IF(SUM(Điểm[[#This Row],[Cột_6]:[Cột_22]]),ROUND(SUMPRODUCT($G$8:$W$8,Điểm[[#This Row],[Cột_6]:[Cột_22]]),2),\"\"))","v":""},{"$f":"IF(Điểm[[#This Row],[Điểm số]]<>\"\",HLOOKUP(Điểm[[#This Row],[Điểm số]],Bảng_điểm,2),\"\")","v":""},{"$f":"IF(Điểm[[#This Row],[Điểm số]]<>\"\",HLOOKUP(Điểm[[#This Row],[Điểm số]],Bảng_điểm,3),\"\")","v":""}]
[{"$nulls":3},{"$f":"(IF(SUM(Điểm[[#This Row],[Cột_6]:[Cột_22]]),ROUND(SUMPRODUCT($G$8:$W$8,Điểm[[#This Row],[Cột_6]:[Cột_22]]),2),\"\"))","v":""},{"$f":"IF(Điểm[[#This Row],[Điểm số]]<>\"\",HLOOKUP(Điểm[[#This Row],[Điểm số]],Bảng_điểm,2),\"\")","v":""},{"$f":"IF(Điểm[[#This Row],[Điểm số]]<>\"\",HLOOKUP(Điểm[[#This Row],[Điểm số]],Bảng_điểm,3),\"\")","v":""}]
[]
[null,"Tóm tắt lớp học",null,"Điểm số","Điểm theo chữ cái","GPA","","","","","","","","","","",""]
[null," Trung bình",null,{"$f":"IFERROR(AVERAGE(Điểm[[#All],[Điểm số]]),0)","v":{"v":0,"d":"0.0%"}},{"$f":"IFERROR(HLOOKUP(D18,Bảng_điểm,2),\"\")","v":"F"},{"$f":"IFERROR(AVERAGE(Điểm[[#All],[GPA]]),0)","v":0},"","","","","","","","","","","","","","","","",""]
[null," Điểm số cao nhất",null,{"$f":"IFERROR(MAX(Điểm[[#All],[Điểm số]]),0)","v":{"v":0,"d":"0.0%"}},{"$f":"IFERROR(HLOOKUP(D19,Bảng_điểm,2),\"\")","v":"F"},{"$f":"IFERROR(MAX(Điểm[[#All],[GPA]]),0)","v":0},"","","","","","","","","","","","","","","","",""]
[null," Điểm số thấp nhất",null,{"$f":"IFERROR(MIN(Điểm[[#All],[Điểm số]]),0)","v":{"v":0,"d":"0.0%"}},{"$f":"IFERROR(HLOOKUP(D20,Bảng_điểm,2),\"\")","v":"F"},{"$f":"IFERROR(MIN(Điểm[[#All],[GPA]]),0)","v":0},"","","","","","","","","","","","","","","","",""]